[Event "Live Chess"]
[Site "Chess.com"]
[Date "2024.06.01"]
[Round "-"]
[White "jellhhggffhjjjjjj"]
[Black "AlexanderMatlak"]
[Result "0-1"]
[WhiteElo "404"]
[BlackElo "2433"]
[TimeControl "300"]
[EndTime "14:52:17 PDT"]
[Termination "AlexanderMatlak won by checkmate"]

1. c4 {[%clk 0:04:48.2]} 1... c5 {[%clk 0:04:58.2]} 2. Nc3 {[%clk 0:04:46]} 2...
b6 {[%clk 0:04:57.5]} 3. d3 {[%clk 0:04:45.1]} 3... Bb7 {[%clk 0:04:56.5]} 4.
Nf3 {[%clk 0:04:39.3]} 4... Nf6 {[%clk 0:04:55.4]} 5. g3 {[%clk 0:04:38.7]} 5...
e6 {[%clk 0:04:54.4]} 6. Bg2 {[%clk 0:04:37.9]} 6... Be7 {[%clk 0:04:53.9]} 7.
Be3 {[%clk 0:04:32.6]} 7... O-O {[%clk 0:04:51.8]} 8. Qb3 {[%clk 0:04:31]} 8...
d5 {[%clk 0:04:42.9]} 9. cxd5 {[%clk 0:04:18.1]} 9... exd5 {[%clk 0:04:42.8]}
10. Bg5 {[%clk 0:04:10]} 10... h6 {[%clk 0:04:37.3]} 11. Bxh6 {[%clk 0:03:59.7]}
11... gxh6 {[%clk 0:04:35.2]} 12. Nh4 {[%clk 0:03:55.4]} 12... Qd7 {[%clk
0:04:30.5]} 13. e4 {[%clk 0:03:52.2]} 13... c4 {[%clk 0:04:23.4]} 14. Qc2 {[%clk
0:03:37.3]} 14... cxd3 {[%clk 0:04:18.9]} 15. Qxd3 {[%clk 0:03:34.2]} 15... dxe4
{[%clk 0:04:18.1]} 16. Qxd7 {[%clk 0:03:32]} 16... Nbxd7 {[%clk 0:04:17.1]} 17.
O-O-O {[%clk 0:03:28.6]} 17... Rac8 {[%clk 0:04:11.2]} 18. Kb1 {[%clk
0:03:24.6]} 18... Bb4 {[%clk 0:03:53.3]} 19. Nf5 {[%clk 0:03:22]} 19... Bxc3
{[%clk 0:03:48.2]} 20. Ne7+ {[%clk 0:03:18.6]} 20... Kg7 {[%clk 0:03:45.4]} 21.
Nxc8 {[%clk 0:03:15.5]} 21... Rxc8 {[%clk 0:03:45.3]} 22. bxc3 {[%clk
0:03:14.5]} 22... Rxc3 {[%clk 0:03:45.2]} 23. Rc1 {[%clk 0:03:13]} 23... Rd3
{[%clk 0:03:33.4]} 24. Rhd1 {[%clk 0:03:06.6]} 24... Ba6 {[%clk 0:03:25.8]} 25.
f4 {[%clk 0:02:43.4]} 25... Nc5 {[%clk 0:03:19.6]} 26. Bf1 {[%clk 0:02:34.5]}
26... Rxd1 {[%clk 0:03:14.3]} 27. Rxd1 {[%clk 0:02:33]} 27... Bxf1 {[%clk
0:03:13.2]} 28. Rxf1 {[%clk 0:02:31.6]} 28... Nd5 {[%clk 0:03:12.2]} 29. Rd1
{[%clk 0:02:23.9]} 29... Nc3+ {[%clk 0:03:10.6]} 30. Kc2 {[%clk 0:02:18.5]}
30... Nxd1 {[%clk 0:03:10.5]} 31. Kxd1 {[%clk 0:02:18]} 31... Kf6 {[%clk
0:03:09.7]} 32. Ke2 {[%clk 0:02:16.8]} 32... Kf5 {[%clk 0:03:08.6]} 33. Ke3
{[%clk 0:02:15.6]} 33... Kg4 {[%clk 0:03:06.4]} 34. Kf2 {[%clk 0:02:12]} 34...
Kh3 {[%clk 0:02:57.4]} 35. f5 {[%clk 0:01:58.8]} 35... Kxh2 {[%clk 0:02:55.6]}
36. g4 {[%clk 0:01:56.6]} 36... Kh3 {[%clk 0:02:54.6]} 37. f6 {[%clk 0:01:51.8]}
37... Kxg4 {[%clk 0:02:53.1]} 38. Ke3 {[%clk 0:01:50.3]} 38... Kf5 {[%clk
0:02:51.2]} 39. Kd4 {[%clk 0:01:47.9]} 39... h5 {[%clk 0:02:49.8]} 40. Ke3
{[%clk 0:01:45.8]} 40... h4 {[%clk 0:02:49.2]} 41. Kf2 {[%clk 0:01:45.3]} 41...
h3 {[%clk 0:02:48.2]} 42. Kg1 {[%clk 0:01:43.4]} 42... e3 {[%clk 0:02:47.4]} 43.
Kh1 {[%clk 0:01:40.4]} 43... e2 {[%clk 0:02:46.3]} 44. Kh2 {[%clk 0:01:35.9]}
44... e1=Q {[%clk 0:02:45.5]} 45. Kxh3 {[%clk 0:01:26.8]} 45... Kf4 {[%clk
0:02:42.7]} 46. Kh2 {[%clk 0:01:21.6]} 46... Qf2+ {[%clk 0:02:40.1]} 47. Kh1
{[%clk 0:01:18.3]} 47... Kg3 {[%clk 0:02:38.9]} 48. a4 {[%clk 0:01:13.3]} 48...
Qg2# {[%clk 0:02:38.8]} 0-1

[Event "Live Chess"]
[Site "Chess.com"]
[Date "2024.06.01"]
[Round "-"]
[White "lyricalschemes"]
[Black "RichardABates"]
[Result "1/2-1/2"]
[WhiteElo "2430"]
[BlackElo "2245"]
[TimeControl "300"]
[EndTime "14:52:36 PDT"]
[Termination "Game drawn by repetition"]

1. e4 {[%clk 0:04:54.9]} 1... c5 {[%clk 0:04:57.4]} 2. Nf3 {[%clk 0:04:50.1]}
2... d6 {[%clk 0:04:56.1]} 3. Bb5+ {[%clk 0:04:46.2]} 3... Nd7 {[%clk
0:04:54.3]} 4. Bxd7+ {[%clk 0:04:45.7]} 4... Bxd7 {[%clk 0:04:52.8]} 5. O-O
{[%clk 0:04:43.4]} 5... Nf6 {[%clk 0:04:49.6]} 6. Re1 {[%clk 0:04:40.1]} 6... e6
{[%clk 0:04:37.9]} 7. d4 {[%clk 0:04:37.5]} 7... cxd4 {[%clk 0:04:35.8]} 8. Qxd4
{[%clk 0:04:34.2]} 8... Be7 {[%clk 0:04:31.8]} 9. Nc3 {[%clk 0:04:31.7]} 9...
O-O {[%clk 0:04:30]} 10. Bg5 {[%clk 0:04:30.2]} 10... Qc7 {[%clk 0:04:20.7]} 11.
Rad1 {[%clk 0:04:24.5]} 11... Bc6 {[%clk 0:04:14]} 12. Bxf6 {[%clk 0:03:59.2]}
12... Bxf6 {[%clk 0:04:12.6]} 13. Qxd6 {[%clk 0:03:55.1]} 13... Qxd6 {[%clk
0:04:09.1]} 14. Rxd6 {[%clk 0:03:55]} 14... Bxc3 {[%clk 0:04:05.8]} 15. bxc3
{[%clk 0:03:54.9]} 15... Rfd8 {[%clk 0:03:56.1]} 16. Rxd8+ {[%clk 0:03:44.1]}
16... Rxd8 {[%clk 0:03:54.3]} 17. Nd4 {[%clk 0:03:43.6]} 17... e5 {[%clk
0:03:47.6]} 18. Nxc6 {[%clk 0:03:38.1]} 18... bxc6 {[%clk 0:03:46.5]} 19. Kf1
{[%clk 0:03:37.6]} 19... Rd2 {[%clk 0:03:43.5]} 20. Re2 {[%clk 0:03:36.7]} 20...
Rd1+ {[%clk 0:03:42.7]} 21. Re1 {[%clk 0:03:36.1]} 21... Rd2 {[%clk 0:03:41.9]}
22. Re2 {[%clk 0:03:35.6]} 22... Rd1+ {[%clk 0:03:41.1]} 23. Re1 {[%clk
0:03:35.2]} 23... Rd2 {[%clk 0:03:40.2]} 1/2-1/2

[Event "Live Chess"]
[Site "Chess.com"]
[Date "2024.06.01"]
[Round "-"]
[White "CheckThis4"]
[Black "FlyingChessKestrel13"]
[Result "1-0"]
[WhiteElo "2681"]
[BlackElo "2068"]
[TimeControl "300"]
[EndTime "14:52:51 PDT"]
[Termination "CheckThis4 won by resignation"]

1. d4 {[%clk 0:04:55.5]} 1... d5 {[%clk 0:04:56.8]} 2. c4 {[%clk 0:04:50]} 2...
dxc4 {[%clk 0:04:55.8]} 3. Nf3 {[%clk 0:04:44.2]} 3... Nf6 {[%clk 0:04:54.3]} 4.
Nc3 {[%clk 0:04:43.4]} 4... a6 {[%clk 0:04:52.9]} 5. e4 {[%clk 0:04:41.6]} 5...
b5 {[%clk 0:04:51.1]} 6. e5 {[%clk 0:04:37.3]} 6... Nd5 {[%clk 0:04:50]} 7. a4
{[%clk 0:04:36.4]} 7... b4 {[%clk 0:04:47.5]} 8. Nxd5 {[%clk 0:04:26.2]} 8...
Qxd5 {[%clk 0:04:45.6]} 9. g3 {[%clk 0:04:22.4]} 9... Bb7 {[%clk 0:04:41.3]} 10.
Bg2 {[%clk 0:04:20.9]} 10... Qd7 {[%clk 0:04:38.9]} 11. O-O {[%clk 0:04:16.5]}
11... e6 {[%clk 0:04:37.4]} 12. Bg5 {[%clk 0:03:48.6]} 12... Be7 {[%clk
0:04:33.6]} 13. Rc1 {[%clk 0:03:43.6]} 13... Bd5 {[%clk 0:04:30.9]} 14. Bxe7
{[%clk 0:03:37.1]} 14... Qxe7 {[%clk 0:04:29.8]} 15. Nd2 {[%clk 0:03:34.5]}
15... Bxg2 {[%clk 0:03:59.4]} 16. Kxg2 {[%clk 0:03:34.4]} 16... O-O {[%clk
0:03:55.2]} 17. Rxc4 {[%clk 0:03:29]} 17... Rd8 {[%clk 0:03:51.6]} 18. Qf3
{[%clk 0:03:21]} 18... Nd7 {[%clk 0:03:43.2]} 19. Rxc7 {[%clk 0:03:17.9]} 19...
Qe8 {[%clk 0:03:35]} 20. Ne4 {[%clk 0:03:10]} 20... Nb6 {[%clk 0:03:12.5]} 21.
Nd6 {[%clk 0:03:00.9]} 21... Rxd6 {[%clk 0:03:10.4]} 22. exd6 {[%clk 0:03:00.8]}
22... Nd5 {[%clk 0:03:05.6]} 23. d7 {[%clk 0:02:50.5]} 23... Qd8 {[%clk
0:03:00.6]} 24. Rfc1 {[%clk 0:02:39.3]} 24... Nxc7 {[%clk 0:02:37.8]} 25. Rxc7
{[%clk 0:02:36.5]} 25... Rb8 {[%clk 0:02:37]} 26. Qc6 {[%clk 0:02:34.2]} 26...
Kf8 {[%clk 0:02:35]} 27. Rc8 {[%clk 0:02:31.4]} 1-0

[Event "Live Chess"]
[Site "Chess.com"]
[Date "2024.06.01"]
[Round "-"]
[White "ACM42"]
[Black "katoma"]
[Result "0-1"]
[WhiteElo "2171"]
[BlackElo "2041"]
[TimeControl "300"]
[EndTime "14:52:57 PDT"]
[Termination "katoma won by resignation"]

1. e4 {[%clk 0:04:56.9]} 1... c5 {[%clk 0:04:57.5]} 2. Nf3 {[%clk 0:04:55.5]}
2... Nc6 {[%clk 0:04:55.4]} 3. d4 {[%clk 0:04:53.9]} 3... cxd4 {[%clk 0:04:54]}
4. Nxd4 {[%clk 0:04:53.1]} 4... e5 {[%clk 0:04:50.3]} 5. Nb5 {[%clk 0:04:51.8]}
5... d6 {[%clk 0:04:46.4]} 6. c4 {[%clk 0:04:50.6]} 6... f5 {[%clk 0:04:42.4]}
7. exf5 {[%clk 0:04:33.1]} 7... Bxf5 {[%clk 0:04:39]} 8. Bd3 {[%clk 0:04:22.3]}
8... Be6 {[%clk 0:04:26.1]} 9. O-O {[%clk 0:04:19.2]} 9... Nf6 {[%clk
0:04:24.3]} 10. N1c3 {[%clk 0:04:14.6]} 10... Be7 {[%clk 0:04:21.4]} 11. Bg5
{[%clk 0:04:07.1]} 11... O-O {[%clk 0:04:16.1]} 12. Bxf6 {[%clk 0:04:04.9]}
12... Rxf6 {[%clk 0:04:08.4]} 13. Ne4 {[%clk 0:04:03.6]} 13... Rh6 {[%clk
0:03:58.4]} 14. b3 {[%clk 0:03:59.7]} 14... Bf7 {[%clk 0:03:30.3]} 15. Qe1
{[%clk 0:03:08.7]} 15... a6 {[%clk 0:03:22.7]} 16. Nbc3 {[%clk 0:03:07.2]} 16...
Nd4 {[%clk 0:03:20.6]} 17. Rd1 {[%clk 0:03:03.7]} 17... Bf8 {[%clk 0:03:10.4]}
18. Bb1 {[%clk 0:03:01.4]} 18... Qh4 {[%clk 0:03:07.4]} 19. h3 {[%clk 0:02:58]}
19... Nf3+ {[%clk 0:03:02.7]} 20. Kh1 {[%clk 0:02:43.1]} 20... Nxe1 {[%clk
0:03:00.5]} 21. Rdxe1 {[%clk 0:02:41.4]} 21... Be6 {[%clk 0:02:54.7]} 0-1

[Event "Live Chess"]
[Site "Chess.com"]
[Date "2024.06.01"]
[Round "-"]
[White "CarmelJane"]
[Black "Capybaras_r_happybaras"]
[Result "1-0"]
[WhiteElo "2069"]
[BlackElo "1066"]
[TimeControl "300"]
[EndTime "14:53:12 PDT"]
[Termination "CarmelJane won on time"]

1. e4 {[%clk 0:04:56.7]} 1... e5 {[%clk 0:04:56.9]} 2. Nf3 {[%clk 0:04:55.4]}
2... Nf6 {[%clk 0:04:54.6]} 3. Nc3 {[%clk 0:04:53.6]} 3... Bc5 {[%clk
0:04:51.8]} 4. Bc4 {[%clk 0:04:49.7]} 4... Nc6 {[%clk 0:04:40.7]} 5. d3 {[%clk
0:04:48.4]} 5... d6 {[%clk 0:04:22.7]} 6. Bg5 {[%clk 0:04:40.1]} 6... Bg4 {[%clk
0:04:11.5]} 7. Nd5 {[%clk 0:04:32.8]} 7... Bxf3 {[%clk 0:03:55.7]} 8. Qxf3
{[%clk 0:04:25.7]} 8... Nd4 {[%clk 0:03:48]} 9. Qd1 {[%clk 0:04:24.3]} 9... c6
{[%clk 0:03:39.2]} 10. Ne3 {[%clk 0:04:17.2]} 10... d5 {[%clk 0:03:32.7]} 11.
exd5 {[%clk 0:04:13]} 11... cxd5 {[%clk 0:03:30.9]} 12. Nxd5 {[%clk 0:04:11.2]}
12... Qd6 {[%clk 0:03:19.7]} 13. Bxf6 {[%clk 0:04:03.9]} 13... gxf6 {[%clk
0:03:16]} 14. c3 {[%clk 0:04:02.9]} 14... O-O-O {[%clk 0:03:12.2]} 15. cxd4
{[%clk 0:03:59.5]} 15... exd4 {[%clk 0:03:07.3]} 16. O-O {[%clk 0:03:42.9]}
16... Rhg8 {[%clk 0:03:03]} 17. Qf3 {[%clk 0:03:40.3]} 17... Rde8 {[%clk
0:02:41.3]} 18. Nxf6 {[%clk 0:03:32.4]} 18... Rxg2+ {[%clk 0:02:23.4]} 19. Kxg2
{[%clk 0:03:27.2]} 19... Rh8 {[%clk 0:01:39.2]} 20. Qg4+ {[%clk 0:03:23.3]}
20... Kb8 {[%clk 0:01:31.3]} 21. Qg3 {[%clk 0:03:21.7]} 21... Qf4 {[%clk
0:01:12.9]} 22. Qxf4+ {[%clk 0:03:18.5]} 22... Ka8 {[%clk 0:00:48.8]} 23. Rfe1
{[%clk 0:03:16.5]} 23... Be7 {[%clk 0:00:41.8]} 24. Rxe7 {[%clk 0:03:12.3]}
24... h6 {[%clk 0:00:18.9]} 25. Re8+ {[%clk 0:03:10.2]} 25... Rxe8 {[%clk
0:00:15.6]} 26. Nxe8 {[%clk 0:03:10.1]} 26... a6 {[%clk 0:00:04.1]} 27. Nc7+
{[%clk 0:03:10]} 27... Ka7 {[%clk 0:00:00.2]} 28. Nb5+ {[%clk 0:03:09.9]} 1-0

[Event "Live Chess"]
[Site "Chess.com"]
[Date "2024.06.01"]
[Round "-"]
[White "AndrewBak1"]
[Black "IgorSchukin"]
[Result "1-0"]
[WhiteElo "1875"]
[BlackElo "1703"]
[TimeControl "300"]
[EndTime "14:53:19 PDT"]
[Termination "AndrewBak1 won by resignation"]

1. e4 {[%clk 0:04:58.6]} 1... c5 {[%clk 0:04:56.5]} 2. Nf3 {[%clk 0:04:57.5]}
2... e6 {[%clk 0:04:55.3]} 3. d4 {[%clk 0:04:57.4]} 3... cxd4 {[%clk 0:04:53.7]}
4. Nxd4 {[%clk 0:04:57.3]} 4... Nc6 {[%clk 0:04:52.2]} 5. c4 {[%clk 0:04:55.7]}
5... a6 {[%clk 0:04:49.2]} 6. Nc3 {[%clk 0:04:54.6]} 6... Qc7 {[%clk 0:04:48.7]}
7. Be3 {[%clk 0:04:53.4]} 7... Nf6 {[%clk 0:04:47.5]} 8. Rc1 {[%clk 0:04:52.2]}
8... Bb4 {[%clk 0:04:45.7]} 9. Bd3 {[%clk 0:04:46.5]} 9... O-O {[%clk
0:04:42.4]} 10. O-O {[%clk 0:04:44.6]} 10... d6 {[%clk 0:04:33.4]} 11. Nd5
{[%clk 0:04:42.1]} 11... Bc5 {[%clk 0:04:18]} 12. Nxc7 {[%clk 0:04:37.5]} 1-0

[Event "Live Chess"]
[Site "Chess.com"]
[Date "2024.06.01"]
[Round "-"]
[White "NeilDruggan73"]
[Black "hapehansen"]
[Result "0-1"]
[WhiteElo "1753"]
[BlackElo "2271"]
[TimeControl "300"]
[EndTime "14:53:22 PDT"]
[Termination "hapehansen won by resignation"]

1. d4 {[%clk 0:04:56.8]} 1... Nf6 {[%clk 0:04:58.2]} 2. Bg5 {[%clk 0:04:54.5]}
2... e6 {[%clk 0:04:55.8]} 3. e4 {[%clk 0:04:52.4]} 3... h6 {[%clk 0:04:54.7]}
4. Bxf6 {[%clk 0:04:48.9]} 4... Qxf6 {[%clk 0:04:54.6]} 5. c3 {[%clk 0:04:46.8]}
5... c5 {[%clk 0:04:50.4]} 6. Nf3 {[%clk 0:04:41.5]} 6... d5 {[%clk 0:04:45.8]}
7. Nbd2 {[%clk 0:04:36.5]} 7... cxd4 {[%clk 0:04:36]} 8. cxd4 {[%clk 0:04:34.1]}
8... Nc6 {[%clk 0:04:35]} 9. Bb5 {[%clk 0:04:31.3]} 9... Bd7 {[%clk 0:04:29.1]}
10. O-O {[%clk 0:04:18.2]} 10... Bb4 {[%clk 0:04:17.7]} 11. exd5 {[%clk
0:04:07.2]} 11... exd5 {[%clk 0:04:15.6]} 12. Re1+ {[%clk 0:04:06.1]} 12... Be7
{[%clk 0:04:12.4]} 13. Ne5 {[%clk 0:04:00.2]} 13... Nxe5 {[%clk 0:04:07.1]} 14.
dxe5 {[%clk 0:03:59.2]} 14... Qe6 {[%clk 0:04:05.4]} 15. Qa4 {[%clk 0:03:51.5]}
15... Bxb5 {[%clk 0:03:57.9]} 16. Qxb5+ {[%clk 0:03:49.6]} 16... Qd7 {[%clk
0:03:57.5]} 17. Qd3 {[%clk 0:03:40.4]} 17... O-O {[%clk 0:03:49.8]} 18. Rad1
{[%clk 0:03:37.3]} 18... Bb4 {[%clk 0:03:45.9]} 19. a3 {[%clk 0:03:33.1]} 19...
Bxd2 {[%clk 0:03:43.4]} 20. Rxd2 {[%clk 0:03:31.2]} 20... Rad8 {[%clk
0:03:42.5]} 21. Red1 {[%clk 0:03:22.5]} 21... Qe6 {[%clk 0:03:34.2]} 22. Qc3
{[%clk 0:03:20.9]} 22... Rd7 {[%clk 0:03:25.4]} 23. b4 {[%clk 0:03:00]} 23... g5
{[%clk 0:03:17]} 24. a4 {[%clk 0:02:54.4]} 24... Re8 {[%clk 0:03:14.1]} 25. Re1
{[%clk 0:02:48.2]} 25... Qc6 {[%clk 0:03:06.3]} 26. Qh3 {[%clk 0:02:35.2]} 26...
Kg7 {[%clk 0:02:58.7]} 27. b5 {[%clk 0:02:25.6]} 27... Rxe5 {[%clk 0:02:45.7]}
28. Rdd1 {[%clk 0:01:34.2]} 28... Rxe1+ {[%clk 0:02:38.7]} 29. Rxe1 {[%clk
0:01:32.9]} 29... Qd6 {[%clk 0:02:35.8]} 30. Qd3 {[%clk 0:01:26.7]} 30... d4
{[%clk 0:02:32.6]} 31. h3 {[%clk 0:01:23.4]} 31... b6 {[%clk 0:02:23.6]} 32. g4
{[%clk 0:01:13.2]} 32... Qg6 {[%clk 0:02:20.1]} 33. Rd1 {[%clk 0:01:09.7]} 33...
Qxd3 {[%clk 0:02:17]} 34. Rxd3 {[%clk 0:01:09.3]} 34... Kf6 {[%clk 0:02:16.1]}
35. Kg2 {[%clk 0:01:08.1]} 35... Ke5 {[%clk 0:02:15]} 36. f3 {[%clk 0:01:06.7]}
36... Kd5 {[%clk 0:02:11.7]} 37. Kg3 {[%clk 0:01:00.4]} 37... Kc4 {[%clk
0:02:09.7]} 38. Rd1 {[%clk 0:00:54]} 38... d3 {[%clk 0:02:07.6]} 39. h4 {[%clk
0:00:51.7]} 39... d2 {[%clk 0:02:05.1]} 40. hxg5 {[%clk 0:00:49.8]} 40... hxg5
{[%clk 0:02:04.2]} 41. f4 {[%clk 0:00:49.4]} 41... gxf4+ {[%clk 0:02:01.2]} 42.
Kxf4 {[%clk 0:00:48.2]} 42... Kd3 {[%clk 0:02:00.9]} 43. Kf3 {[%clk 0:00:45.7]}
43... Kc2 {[%clk 0:01:57.2]} 44. Rxd2+ {[%clk 0:00:29.8]} 44... Rxd2 {[%clk
0:01:53.9]} 0-1

[Event "Live Chess"]
[Site "Chess.com"]
[Date "2024.06.01"]
[Round "-"]
[White "dhairyapandyauk"]
[Black "asingardenof"]
[Result "1-0"]
[WhiteElo "1654"]
[BlackElo "616"]
[TimeControl "300"]
[EndTime "14:53:27 PDT"]
[Termination "dhairyapandyauk won by resignation"]

1. e4 {[%clk 0:04:57.5]} 1... c6 {[%clk 0:04:58.7]} 2. d4 {[%clk 0:04:56.3]}
2... d5 {[%clk 0:04:58]} 3. exd5 {[%clk 0:04:54.4]} 3... cxd5 {[%clk 0:04:57.9]}
4. Bf4 {[%clk 0:04:53.6]} 4... Nc6 {[%clk 0:04:48.8]} 5. Nc3 {[%clk 0:04:52.5]}
5... Nf6 {[%clk 0:04:47]} 6. Nb5 {[%clk 0:04:48.9]} 6... Rb8 {[%clk 0:04:31.8]}
7. Bxb8 {[%clk 0:04:35.4]} 7... Bd7 {[%clk 0:04:23.2]} 8. Nc7+ {[%clk
0:04:30.2]} 8... Qxc7 {[%clk 0:04:13.2]} 9. Bxc7 {[%clk 0:04:29.8]} 9... e6
{[%clk 0:04:10.4]} 10. Bb5 {[%clk 0:04:25.6]} 10... a6 {[%clk 0:04:08]} 11. Bxc6
{[%clk 0:04:24.8]} 11... Bxc6 {[%clk 0:04:07.9]} 12. Qd2 {[%clk 0:04:19.8]}
12... Kd7 {[%clk 0:04:07.8]} 13. Be5 {[%clk 0:04:17.4]} 13... Ne4 {[%clk
0:04:03.8]} 14. Qe3 {[%clk 0:04:13]} 14... Bb4+ {[%clk 0:03:58.5]} 15. c3 {[%clk
0:04:12.3]} 15... Ba5 {[%clk 0:03:57.4]} 16. f3 {[%clk 0:04:10.8]} 16... Nf6
{[%clk 0:03:50.6]} 17. Bxf6 {[%clk 0:04:10]} 17... gxf6 {[%clk 0:03:50.5]} 18.
Qf4 {[%clk 0:04:08.8]} 18... Ke7 {[%clk 0:03:43.9]} 19. Kd2 {[%clk 0:04:06]}
19... e5 {[%clk 0:03:43.8]} 20. dxe5 {[%clk 0:04:05.1]} 20... fxe5 {[%clk
0:03:43.7]} 21. Qxe5+ {[%clk 0:04:04.5]} 21... Kf8 {[%clk 0:03:41.5]} 22. Qxh8+
{[%clk 0:04:03.6]} 22... Ke7 {[%clk 0:03:40]} 23. Re1+ {[%clk 0:04:02.7]} 1-0

[Event "Live Chess"]
[Site "Chess.com"]
[Date "2024.06.01"]
[Round "-"]
[White "bez2104"]
[Black "Rusty_Bridges"]
[Result "0-1"]
[WhiteElo "1552"]
[BlackElo "1543"]
[TimeControl "300"]
[EndTime "14:53:28 PDT"]
[Termination "Rusty_Bridges won on time"]

1. e4 {[%clk 0:04:55.4]} 1... d6 {[%clk 0:04:58.5]} 2. d4 {[%clk 0:04:52.8]}
2... Nf6 {[%clk 0:04:57.6]} 3. Nc3 {[%clk 0:04:48.7]} 3... Nbd7 {[%clk
0:04:56.7]} 4. Nf3 {[%clk 0:04:47.6]} 4... e5 {[%clk 0:04:56]} 5. Be3 {[%clk
0:04:41.7]} 5... h6 {[%clk 0:04:54.2]} 6. h3 {[%clk 0:04:39.9]} 6... Be7 {[%clk
0:04:52.4]} 7. Bd3 {[%clk 0:04:38.8]} 7... c6 {[%clk 0:04:51.6]} 8. O-O {[%clk
0:04:37.3]} 8... Qc7 {[%clk 0:04:50.8]} 9. dxe5 {[%clk 0:04:32.9]} 9... dxe5
{[%clk 0:04:49]} 10. Qe1 {[%clk 0:04:26.8]} 10... g5 {[%clk 0:04:39.2]} 11. Rd1
{[%clk 0:04:22]} 11... Nf8 {[%clk 0:04:37.7]} 12. a4 {[%clk 0:04:17.4]} 12...
Ng6 {[%clk 0:04:36.6]} 13. Bc4 {[%clk 0:04:16.2]} 13... Nf4 {[%clk 0:04:34.8]}
14. Bxf4 {[%clk 0:04:14.3]} 14... gxf4 {[%clk 0:04:33.3]} 15. Nh4 {[%clk
0:03:52.7]} 15... Rg8 {[%clk 0:04:29.3]} 16. Nf5 {[%clk 0:03:47.8]} 16... Bxf5
{[%clk 0:04:23.6]} 17. exf5 {[%clk 0:03:45.9]} 17... f3 {[%clk 0:04:14.3]} 18.
g3 {[%clk 0:03:39.7]} 18... Bc5 {[%clk 0:04:08]} 19. Ne4 {[%clk 0:03:25]} 19...
Nxe4 {[%clk 0:04:01.3]} 20. Qxe4 {[%clk 0:03:23.8]} 20... Rxg3+ {[%clk
0:03:58.4]} 21. Kh2 {[%clk 0:03:22.7]} 21... Rg2+ {[%clk 0:03:55.8]} 22. Kh1
{[%clk 0:03:20.9]} 22... Rxf2 {[%clk 0:02:56.1]} 23. f6 {[%clk 0:02:07.2]} 23...
Rxf1+ {[%clk 0:02:43.3]} 24. Rxf1 {[%clk 0:02:03.6]} 24... O-O-O {[%clk
0:02:39.8]} 25. Bxf7 {[%clk 0:01:53.4]} 25... Qxf7 {[%clk 0:02:31.9]} 26. Qf5+
{[%clk 0:01:51]} 26... Rd7 {[%clk 0:02:17]} 27. Rd1 {[%clk 0:01:45.3]} 27... Kc7
{[%clk 0:01:53.5]} 28. Qxe5+ {[%clk 0:01:41.7]} 28... Kb6 {[%clk 0:01:37]} 29.
Rxd7 {[%clk 0:01:24.2]} 29... Qxd7 {[%clk 0:01:34.9]} 30. b4 {[%clk 0:01:20.1]}
30... Qxh3+ {[%clk 0:01:31.8]} 31. Qh2 {[%clk 0:01:06.5]} 31... Qxh2+ {[%clk
0:01:27.8]} 32. Kxh2 {[%clk 0:01:05.4]} 32... f2 {[%clk 0:01:24.8]} 33. Kg2
{[%clk 0:01:03.9]} 33... Bxb4 {[%clk 0:01:17.6]} 34. Kxf2 {[%clk 0:01:01.7]}
34... Ka5 {[%clk 0:01:16.5]} 35. Kf3 {[%clk 0:00:58]} 35... Kxa4 {[%clk
0:01:15.6]} 36. Kg4 {[%clk 0:00:56.7]} 36... a5 {[%clk 0:01:13.7]} 37. Kf5
{[%clk 0:00:55.5]} 37... Kb5 {[%clk 0:01:12.5]} 38. Kg6 {[%clk 0:00:54.5]} 38...
a4 {[%clk 0:01:09.6]} 39. f7 {[%clk 0:00:47.3]} 39... a3 {[%clk 0:01:08.1]} 40.
c3 {[%clk 0:00:45.5]} 40... Bc5 {[%clk 0:01:06.2]} 41. Kg7 {[%clk 0:00:38.9]}
41... a2 {[%clk 0:01:04.3]} 42. f8=Q {[%clk 0:00:37.1]} 42... Bxf8+ {[%clk
0:01:02.8]} 43. Kf7 {[%clk 0:00:35]} 43... a1=Q {[%clk 0:01:01]} 0-1

[Event "Live Chess"]
[Site "Chess.com"]
[Date "2024.06.01"]
[Round "-"]
[White "upoe610"]
[Black "IanCalvert2"]
[Result "1/2-1/2"]
[WhiteElo "2212"]
[BlackElo "1657"]
[TimeControl "300"]
[EndTime "14:53:47 PDT"]
[Termination "Game drawn by repetition"]

1. e4 {[%clk 0:04:55.5]} 1... d5 {[%clk 0:04:56.6]} 2. exd5 {[%clk 0:04:53.8]}
2... Qxd5 {[%clk 0:04:55.1]} 3. h3 {[%clk 0:04:52.8]} 3... Nf6 {[%clk
0:04:49.5]} 4. Nf3 {[%clk 0:04:51.8]} 4... Bf5 {[%clk 0:04:32.8]} 5. d4 {[%clk
0:04:47.7]} 5... c6 {[%clk 0:04:17.2]} 6. c4 {[%clk 0:04:42.1]} 6... Qa5+ {[%clk
0:04:01.3]} 7. Nc3 {[%clk 0:04:39.7]} 7... e6 {[%clk 0:03:58.6]} 8. Be2 {[%clk
0:04:35.6]} 8... Nbd7 {[%clk 0:03:53.5]} 9. O-O {[%clk 0:04:34.3]} 9... Be7
{[%clk 0:03:50]} 10. Bd2 {[%clk 0:04:27.4]} 10... Qc7 {[%clk 0:03:46]} 11. Rc1
{[%clk 0:04:25.6]} 11... O-O {[%clk 0:03:38]} 12. a3 {[%clk 0:04:21.2]} 12...
Rad8 {[%clk 0:03:26.5]} 13. Re1 {[%clk 0:04:12.6]} 13... Qb8 {[%clk 0:03:06.9]}
14. Nh4 {[%clk 0:03:58.7]} 14... Bg6 {[%clk 0:03:02.1]} 15. Nxg6 {[%clk
0:03:56.9]} 15... hxg6 {[%clk 0:02:58.7]} 16. Bf3 {[%clk 0:03:53.9]} 16... e5
{[%clk 0:02:48.4]} 17. d5 {[%clk 0:03:41.6]} 17... cxd5 {[%clk 0:02:42.4]} 18.
Nxd5 {[%clk 0:03:40.3]} 18... Nxd5 {[%clk 0:02:40.5]} 19. cxd5 {[%clk 0:03:30]}
19... Bd6 {[%clk 0:02:36.2]} 20. Bb4 {[%clk 0:03:28]} 20... Rc8 {[%clk
0:02:24.7]} 21. Rxc8 {[%clk 0:03:24.1]} 21... Rxc8 {[%clk 0:02:20.7]} 22. Qb3
{[%clk 0:03:21.1]} 22... b6 {[%clk 0:02:06.4]} 23. Bg4 {[%clk 0:03:16.6]} 23...
f5 {[%clk 0:02:00.5]} 24. Be2 {[%clk 0:03:13.2]} 24... e4 {[%clk 0:01:55.8]} 25.
Bb5 {[%clk 0:03:08.5]} 25... Nc5 {[%clk 0:01:44.8]} 26. Bxc5 {[%clk 0:03:05.6]}
26... Rxc5 {[%clk 0:01:38.5]} 27. Bc6 {[%clk 0:03:04]} 27... Kh7 {[%clk
0:01:21.5]} 28. Qd1 {[%clk 0:02:55.2]} 28... Qd8 {[%clk 0:01:08.7]} 29. b4
{[%clk 0:02:52.8]} 29... Rc3 {[%clk 0:01:05.6]} 30. Qa1 {[%clk 0:02:42]} 30...
Qf6 {[%clk 0:01:02]} 31. a4 {[%clk 0:02:40.3]} 31... Qe5 {[%clk 0:00:56.1]} 32.
g3 {[%clk 0:02:34.8]} 32... Rxg3+ {[%clk 0:00:50.8]} 33. fxg3 {[%clk 0:02:29.8]}
33... Qxg3+ {[%clk 0:00:48]} 34. Kf1 {[%clk 0:02:28.9]} 34... Qf3+ {[%clk
0:00:46.2]} 35. Kg1 {[%clk 0:02:28]} 35... Qg3+ {[%clk 0:00:45]} 36. Kf1 {[%clk
0:02:27.2]} 36... Qf3+ {[%clk 0:00:43.9]} 37. Kg1 {[%clk 0:02:26.4]} 37... Qg3+
{[%clk 0:00:42.2]} 1/2-1/2